Workbook

Sheet Instructions
B2: Instructions
B4: 1) | C4: Check the page Headers, Footers & Title to make sure your name and other information are correct.
B6: 2) | C6: Enter into the Root Cause row the verified root causes.
B8: 3) | C8: In the Root Cause row, input the relative importance of the X to the business.
B10: 4) | C10: List your potential improvements in the Potential Improvements column.
B12: 5) | C12: Using the Ratings sheet, select appropriate ratings for Impact, Cost & Risk columns.
B14: 6) | C14: Finally, press the Rank button. This sorts the data by order of rank, and updates the
C15: process date in the footer & sheet
B17: 6) | C17: Hide rows & columns that are empty.

Sheet Improvement Matrix
B3: Solution Selection Matrix | V3: =TODAY() -> 2025-11-11
C5: 1 | D5: 2 | E5: 3 | F5: 4 | G5: 5 | H5: 6 | R5: 7 | S5: 8 | T5: 9 | U5: 10
B6: Root Causes (Xs)▼ | S6: Overall Impact Rating | T6: Risk Rating | U6: Cost To Implement Rating
B7: Root Cause Significance Rating ►
B8: Potential Improvements ▼ | C8: Impact Rating | V8: Overall | W8: Rank
A9: 1 | S9: =SUM($C$7:$R$7*C9:R9) -> 0 | V9: =S9*T9*U9 -> 0 | W9: =IF(V9=0,"",RANK(V9,$V$9:$V$58,0)) -> 
A10: 2 | S10: =SUM($C$7:$R$7*C10:R10) -> 0 | V10: 0
A11: 3 | S11: =SUM($C$7:$R$7*C11:R11) -> 0 | V11: 0
A12: 4 | S12: =SUM($C$7:$R$7*C12:R12) -> 0 | V12: 0
A13: 5 | S13: =SUM($C$7:$R$7*C13:R13) -> 0 | V13: 0
A14: 6 | S14: =SUM($C$7:$R$7*C14:R14) -> 0 | V14: 0
A15: 7 | S15: =SUM($C$7:$R$7*C15:R15) -> 0 | V15: 0
A16: 8 | S16: =SUM($C$7:$R$7*C16:R16) -> 0 | V16: 0
A17: 9 | S17: =SUM($C$7:$R$7*C17:R17) -> 0 | V17: 0
A18: 10 | S18: =SUM($C$7:$R$7*C18:R18) -> 0 | V18: 0
A19: 11 | S19: =SUM($C$7:$R$7*C19:R19) -> 0 | V19: 0
A20: 12 | S20: =SUM($C$7:$R$7*C20:R20) -> 0 | V20: 0
A21: 13 | S21: =SUM($C$7:$R$7*C21:R21) -> 0 | V21: 0
A22: 14 | S22: =SUM($C$7:$R$7*C22:R22) -> 0 | V22: 0
A23: 15 | S23: =SUM($C$7:$R$7*C23:R23) -> 0 | V23: 0
A24: 16 | S24: =SUM($C$7:$R$7*C24:R24) -> 0 | V24: 0
A25: 17 | S25: =SUM($C$7:$R$7*C25:R25) -> 0 | V25: 0
A26: 18 | S26: =SUM($C$7:$R$7*C26:R26) -> 0 | V26: 0
A27: 19 | S27: =SUM($C$7:$R$7*C27:R27) -> 0 | V27: 0
A28: 20 | S28: =SUM($C$7:$R$7*C28:R28) -> 0 | V28: 0
A29: 21
A30: 22
A31: 23
A32: 24
A33: 25
A34: 26
A35: 27
A36: 28
A37: 29
A38: 30
A39: 31
A40: 32
A41: 33
A42: 34
A43: 35
A44: 36
A45: 37
A46: 38
A47: 39
A48: 40
A49: 41
A50: 42
A51: 43
A52: 44
A53: 45
A54: 46
A55: 47
A56: 48
A57: 49
A58: 50

Sheet Ratings
A1: IMPACT RATING
A2: 7 | B2: Improvement permanently removes the X from the process | C2: Elimination of Step / Input
A3: 6 | B3: Improvement will permanently monitor the condition that negatively impacts X | C3: Monitoring / Flagging
A4: 5 | B4: Improvement will prevent defects caused by variation of X in process | C4: Automation / Standardization / Performance Metrics
A5: 4 | B5: Improvement will prevent defects produced by X from being passed on but will not prevent occurrence | C5: Inspection
A6: 3 | B6: Improvement will move the impact of X to area with better control the impact of the X | C6: Movement of Work
A7: 2 | B7: Improvement will have a temporary positive impact on the defects produced by X but success dependent on people | C7: Training
A8: 1 | B8: Impact will make those responsible for X aware of the defects resulting from X | C8: Send a Letter
A9: 0 | B9: Improvement has no effect on X
A11: COST TO IMPLEMENT RATINGS
A12: 7 | B12: Cost of improvement is negligible- there are no incremental recurring expenses, no capital investment
A13: 6 | B13: Cost of improvement is comprised completely of one time expenses - no capital investment, no incremental recurring expenses
A14: 5 | B14: Cost of improvement is comprised of one time expenses and some incremental recurring expenses, no capital investment
A15: 4 | B15: Cost of improvement is comprised of one time expenses, some incremental expenses, small amount of capital investment
A16: 3 | B16: Cost of improvement involves moderate capital investment, and is in alignment with strategic goals of business
A17: 2 | B17: Cost of improvement involves significant capital investment, and is in alignment with strategic goals of business
A18: 1 | B18: Cost of improvement involves moderate capital investment, and is not in alignment with strategic goals of business
A19: 0 | B19: Cost of improvement involves significant capital investment, and is not in alignment with strategic goals of business
A21: RISK RATINGS
A22: 7 | B22: No new technology, Implementation time < 1 month- few timing/political/ cultural constraints
A23: 6 | B23: No new technology, Implementation time is between 1-3 months - few timing/political/ cultural constraints
A24: 5 | B24: No new technology, Implementation time > 3 months - few timing/political/ cultural constraints
A25: 4 | B25: No new technology, Implementation time < 3 months - moderate amount of timing/political/ cultural constraints
A26: 3 | B26: No new technology, Implementation time > 3 months - moderate amount of timing/political/ cultural constraints
A27: 2 | B27: New technology, Implementation time < 3 months - many timing/political/cultural constraints
A28: 1 | B28: New technology, Implementation time is between 3-6 months - many timing/political/ cultural constraints
A29: 0 | B29: New technology, Technical Time greater than 6 months - many timing, political and cultural constraints

Sheet Example
B1: Bechtel Six Sigma
B3: Solution Selection Matrix | V3: 2006-09-06
C5: 1 | D5: 2 | E5: 3 | F5: 4 | G5: 5 | H5: 6 | R5: 7 | S5: 8 | T5: 9 | U5: 10
B6: Root Causes (Xs)▼ | C6: Time to Issue Invoice | D6: Complete | E6: Accuracy | F6: Presentation | G6: Per Commercial Terms | H6: Level of Effort | S6: Overall Impact Rating | T6: Risk Rating | U6: Cost To Implement Rating
B7: Root Cause Significance Rating ► | C7: 10 | D7: 10 | E7: 10 | F7: 10 | G7: 10 | H7: 10
B8: Potential Improvements ▼ | C8: Impact Rating | V8: Overall | W8: Rank
A9: 1 | B9: Offshore Costs | C9: 7 | D9: 1 | E9: 5 | F9: 8 | G9: 1 | H9: 10 | S9: =SUM($C$7:$R$7*C9:R9) -> 320 | T9: 8 | U9: 6 | V9: =S9*T9*U9 -> 15360 | W9: =IF(V9=0,"",RANK(V9,$V$9:$V$58,0)) -> 1
A10: 2 | B10: Commercial Terms | C10: 8 | D10: 4 | E10: 2 | F10: 5 | G10: 10 | H10: 7 | S10: =SUM($C$7:$R$7*C10:R10) -> 360 | T10: 7 | U10: 5 | V10: 12600 | W10: 2
A11: 3 | B11: Quantity of Source Data | C11: 8 | D11: 5 | E11: 7 | F11: 7 | G11: 1 | H11: 10 | S11: =SUM($C$7:$R$7*C11:R11) -> 380 | T11: 6 | U11: 4 | V11: 9120 | W11: 3
A12: 4 | B12: Reconciliation | C12: 10 | D12: 10 | E12: 10 | F12: 1 | G12: 10 | H12: 10 | S12: =SUM($C$7:$R$7*C12:R12) -> 510 | T12: 6 | U12: 2 | V12: 6120 | W12: 4
A13: 5 | B13: Quality of Source Data | C13: 7 | D13: 7 | E13: 7 | F13: 7 | G13: 7 | H13: 7 | S13: =SUM($C$7:$R$7*C13:R13) -> 420 | T13: 7 | U13: 2 | V13: 5880 | W13: 5
A14: 6 | B14: Training | C14: 8 | D14: 7 | E14: 10 | F14: 5 | G14: 8 | H14: 10 | S14: =SUM($C$7:$R$7*C14:R14) -> 480 | T14: 6 | U14: 2 | V14: 5760 | W14: 6
A15: 7 | B15: Client (eg RCTI) | C15: 6 | D15: 2 | E15: 2 | F15: 10 | G15: 8 | H15: 8 | S15: =SUM($C$7:$R$7*C15:R15) -> 360 | T15: 5 | U15: 3 | V15: 5400 | W15: 7
A16: 8 | B16: Job Setup | C16: 10 | D16: 4 | E16: 10 | F16: 6 | G16: 10 | H16: 10 | S16: =SUM($C$7:$R$7*C16:R16) -> 500 | T16: 5 | U16: 2 | V16: 5000 | W16: 8
A17: 9 | B17: Payroll Close Date | C17: 8 | D17: 10 | E17: 1 | F17: 1 | G17: 1 | H17: 8 | S17: =SUM($C$7:$R$7*C17:R17) -> 290 | T17: 8 | U17: 2 | V17: 4640 | W17: 9
A18: 10 | B18: Pre-Billing | C18: 10 | D18: 8 | E18: 6 | F18: 8 | G18: 2 | H18: 10 | S18: =SUM($C$7:$R$7*C18:R18) -> 440 | T18: 5 | U18: 2 | V18: 4400 | W18: 10
A19: 11 | B19: Client Reporting Requirements | C19: 7 | D19: 9 | E19: 4 | F19: 10 | G19: 10 | H19: 10 | S19: =SUM($C$7:$R$7*C19:R19) -> 500 | T19: 4 | U19: 2 | V19: 4000 | W19: 11
A20: 12 | B20: Delivery Method | C20: 9 | D20: 1 | E20: 1 | F20: 5 | G20: 5 | H20: 7 | S20: =SUM($C$7:$R$7*C20:R20) -> 280 | T20: 9 | U20: 1 | V20: 2520 | W20: 12
A21: 13 | B21: Job Completion | C21: 7 | D21: 10 | E21: 1 | F21: 7 | G21: 5 | H21: 10 | S21: =SUM($C$7:$R$7*C21:R21) -> 400 | T21: 3 | U21: 2 | V21: 2400 | W21: 13
A22: 14 | B22: Job Manager Requirements | C22: 9 | D22: 7 | E22: 5 | F22: 4 | G22: 8 | H22: 9 | S22: =SUM($C$7:$R$7*C22:R22) -> 420 | T22: 2 | U22: 1 | V22: 840 | W22: 14
A23: 15 | S23: =SUM($C$7:$R$7*C23:R23) -> 0 | V23: 0
A24: 16 | S24: =SUM($C$7:$R$7*C24:R24) -> 0 | V24: 0
A25: 17 | S25: =SUM($C$7:$R$7*C25:R25) -> 0 | V25: 0
A26: 18 | S26: =SUM($C$7:$R$7*C26:R26) -> 0 | V26: 0
A27: 19 | S27: =SUM($C$7:$R$7*C27:R27) -> 0 | V27: 0
A28: 20 | S28: =SUM($C$7:$R$7*C28:R28) -> 0 | V28: 0
A29: 21
A30: 22
A31: 23
A32: 24
A33: 25
A34: 26
A35: 27
A36: 28
A37: 29
A38: 30
A39: 31
A40: 32
A41: 33
A42: 34
A43: 35
A44: 36
A45: 37
A46: 38
A47: 39
A48: 40
A49: 41
A50: 42
A51: 43
A52: 44
A53: 45
A54: 46
A55: 47
A56: 48
A57: 49
A58: 50

Sheet Sheet4 (hidden)

Sheet Sheet6 (hidden)

Sheet Sheet7 (hidden)

Sheet Sheet8 (hidden)

Sheet Sheet9 (hidden)

Sheet Sheet10 (hidden)

Sheet Sheet11 (hidden)

Sheet Sheet12 (hidden)

Sheet Sheet13 (hidden)

Sheet Sheet14 (hidden)

Sheet Sheet15 (hidden)

Sheet Sheet16 (hidden)
